[Event "Weekend I 2025"]
[Site "Uppsala, Sweden"]
[Date "2025.06.27"]
[Round "1.17"]
[White "Kruuse, Peter"]
[Black "Akeborg, Jonatan"]
[Result "0-1"]
[TimeControl "90 min + increment of 30 sec starting move 1"]
[WhiteFideId "1720376"]
[BlackFideId "1773089"]
[WhiteElo "1890"]
[BlackElo "1907"]

1. e4 {[%clk 01:30:48]} {[%emt 00:00:12]} c5 {[%clk 01:30:46]} {[%emt
00:00:14]} 2. Nf3 {[%clk 01:31:12]} {[%emt 00:00:06]} d6 {[%clk 01:31:05]}
{[%emt 00:00:11]} 3. Bb5+ {[%clk 01:31:33]} {[%emt 00:00:09]} Bd7 {[%clk
01:31:28]} {[%emt 00:00:07]} 4. c4 {[%clk 01:31:58]} {[%emt 00:00:05]} Nc6
{[%clk 01:31:45]} {[%emt 00:00:14]} 5. O-O {[%clk 01:31:55]} {[%emt 00:00:33]}
e5 {[%clk 01:29:10]} {[%emt 00:03:05]} 6. Nc3 {[%clk 01:31:18]} {[%emt
00:01:06]} g6 {[%clk 01:24:25]} {[%emt 00:05:14]} 7. d3 {[%clk 01:27:11]}
{[%emt 00:04:37]} Bg7 {[%clk 01:20:05]} {[%emt 00:04:50]} 8. Bg5 {[%clk
01:22:30]} {[%emt 00:05:11]} f6 {[%clk 01:11:52]} {[%emt 00:08:44]} 9. Be3
{[%clk 01:18:54]} {[%emt 00:04:06]} Nge7 {[%clk 01:10:14]} {[%emt 00:02:08]} 10.
Qd2 {[%clk 01:18:30]} {[%emt 00:00:53]} O-O {[%clk 00:47:32]} {[%emt 00:23:12]}
11. Bh6 {[%clk 01:17:53]} {[%emt 00:01:07]} Qe8 {[%clk 00:44:33]} {[%emt
00:03:29]} 12. Bxg7 {[%clk 01:17:28]} {[%emt 00:00:55]} Kxg7 {[%clk 00:44:58]}
{[%emt 00:00:06]} 13. Bxc6 {[%clk 01:15:58]} {[%emt 00:02:00]} Bxc6 {[%clk
00:39:15]} {[%emt 00:06:12]} 14. Rab1 {[%clk 01:08:18]} {[%emt 00:08:10]} f5
{[%clk 00:28:47]} {[%emt 00:10:58]} 15. Ng5 {[%clk 01:03:09]} {[%emt 00:05:37]}
Qd7 {[%clk 00:25:56]} {[%emt 00:03:23]} 16. f3 {[%clk 01:02:57]} {[%emt
00:00:41]} h6 {[%clk 00:25:02]} {[%emt 00:01:25]} 17. Nh3 {[%clk 01:03:01]}
{[%emt 00:00:26]} a5 {[%clk 00:21:03]} {[%emt 00:04:29]} 18. b3 {[%clk
01:02:22]} {[%emt 00:01:09]} f4 {[%clk 00:20:33]} {[%emt 00:01:00]} 19. a3
{[%clk 01:01:23]} {[%emt 00:01:28]} Ra7 {[%clk 00:14:28]} {[%emt 00:06:36]} 20.
b4 {[%clk 01:00:56]} {[%emt 00:00:57]} axb4 {[%clk 00:14:13]} {[%emt 00:00:45]}
21. axb4 {[%clk 01:01:23]} {[%emt 00:00:03]} cxb4 {[%clk 00:13:35]} {[%emt
00:01:08]} 22. Rxb4 {[%clk 01:01:15]} {[%emt 00:00:38]} Qc7 {[%clk 00:06:32]}
{[%emt 00:07:33]} 23. Rfb1 {[%clk 00:46:30]} {[%emt 00:15:15]} Rfa8 {[%clk
00:06:03]} {[%emt 00:00:59]} 24. Qb2 {[%clk 00:42:27]} {[%emt 00:04:32]} Kh7
{[%clk 00:05:07]} {[%emt 00:01:27]} 25. Nf2 {[%clk 00:37:26]} {[%emt 00:05:31]}
Qa5 {[%clk 00:04:44]} {[%emt 00:00:51]} 26. Nd5 {[%clk 00:34:59]} {[%emt
00:02:50]} Qc5 {[%clk 00:02:10]} {[%emt 00:03:13]} 27. Nc3 {[%clk 00:30:17]}
{[%emt 00:05:11]} Ng8 {[%clk 00:01:52]} {[%emt 00:00:49]} 28. Kf1 {[%clk
00:29:10]} {[%emt 00:01:36]} Nf6 {[%clk 00:02:01]} {[%emt 00:00:21]} 29. Nfd1
{[%clk 00:29:16]} {[%emt 00:00:25]} g5 {[%clk 00:02:02]} {[%emt 00:00:30]} 30.
Qf2 {[%clk 00:28:57]} {[%emt 00:00:48]} Qxf2+ {[%clk 00:02:18]} {[%emt
00:00:14]} 31. Kxf2 {[%clk 00:28:46]} {[%emt 00:00:41]} Nd7 {[%clk 00:02:34]}
{[%emt 00:00:14]} 32. Ke2 {[%clk 00:24:43]} {[%emt 00:04:33]} Nc5 {[%clk
00:02:09]} {[%emt 00:00:55]} 33. Kd2 {[%clk 00:24:33]} {[%emt 00:00:39]} Kg6
{[%clk 00:02:21]} {[%emt 00:00:18]} 34. Nb5 {[%clk 00:18:04]} {[%emt 00:06:59]}
Ra2+ {[%clk 00:01:53]} {[%emt 00:00:58]} 35. Nb2 {[%clk 00:12:47]} {[%emt
00:05:47]} Bxb5 {[%clk 00:02:04]} {[%emt 00:00:20]} 36. Rxb5 {[%clk 00:12:44]}
{[%emt 00:00:33]} R8a3 {[%clk 00:01:59]} {[%emt 00:00:34]} 37. Rb6 {[%clk
00:05:59]} {[%emt 00:07:15]} Rxd3+ {[%clk 00:01:51]} {[%emt 00:00:38]} 38. Ke1
{[%clk 00:05:00]} {[%emt 00:01:29]} Rd4 {[%clk 00:01:45]} {[%emt 00:00:36]} 39.
Nd1 {[%clk 00:04:32]} {[%emt 00:00:59]} Rdd2 {[%clk 00:01:41]} {[%emt
00:00:33]} 40. Nc3 {[%clk 00:04:19]} {[%emt 00:00:44]} Nd3+ {[%clk 00:01:44]}
{[%emt 00:00:27]} 0-1

[Event "Weekend I 2025"]
[Site "Uppsala, Sweden"]
[Date "2025.06.27"]
[Round "1.2"]
[White "Frisk, Ellinor"]
[Black "Dingertz, Filip"]
[Result "1/2-1/2"]
[TimeControl "90 min + increment of 30 sec starting move 1"]
[WhiteTitle "WIM"]
[WhiteFideId "1708481"]
[BlackFideId "1757288"]
[WhiteElo "2169"]
[BlackElo "2043"]

1. c4 {[%clk 01:29:31]} {[%emt 00:01:29]} c5 {[%clk 01:29:04]} {[%emt
00:01:56]} 2. Nf3 {[%clk 01:28:53]} {[%emt 00:01:08]} Nc6 {[%clk 01:28:42]}
{[%emt 00:00:53]} 3. d4 {[%clk 01:29:11]} {[%emt 00:00:12]} cxd4 {[%clk
01:27:47]} {[%emt 00:01:24]} 4. Nxd4 {[%clk 01:29:36]} {[%emt 00:00:06]} Nf6
{[%clk 01:27:12]} {[%emt 00:01:05]} 5. Nc3 {[%clk 01:28:10]} {[%emt 00:01:56]}
d6 {[%clk 01:17:44]} {[%emt 00:09:58]} 6. g3 {[%clk 01:27:16]} {[%emt
00:01:24]} e5 {[%clk 01:15:54]} {[%emt 00:02:20]} 7. Nc2 {[%clk 01:26:34]}
{[%emt 00:01:12]} Be6 {[%clk 01:13:12]} {[%emt 00:03:12]} 8. Ne3 {[%clk
01:24:42]} {[%emt 00:02:22]} Be7 {[%clk 01:09:06]} {[%emt 00:04:35]} 9. Bg2
{[%clk 01:24:57]} {[%emt 00:00:16]} h5 {[%clk 01:09:22]} {[%emt 00:00:14]} 10.
h4 {[%clk 01:22:18]} {[%emt 00:03:08]} Rc8 {[%clk 01:07:26]} {[%emt 00:02:26]}
11. Ned5 {[%clk 01:14:48]} {[%emt 00:08:00]} Qd7 {[%clk 01:00:38]} {[%emt
00:07:18]} 12. b3 {[%clk 01:06:19]} {[%emt 00:09:00]} b5 {[%clk 00:51:11]}
{[%emt 00:09:56]} 13. Nxe7 {[%clk 00:50:16]} {[%emt 00:16:33]} Nxe7 {[%clk
00:50:02]} {[%emt 00:01:40]} 14. Nxb5 {[%clk 00:50:09]} {[%emt 00:00:38]} d5
{[%clk 00:47:36]} {[%emt 00:02:55]} 15. Ba3 {[%clk 00:50:03]} {[%emt 00:00:36]}
O-O {[%clk 00:45:52]} {[%emt 00:02:14]} 16. O-O {[%clk 00:41:36]} {[%emt
00:08:56]} Rfd8 {[%clk 00:43:25]} {[%emt 00:02:57]} 17. Nd6 {[%clk 00:40:20]}
{[%emt 00:01:46]} Rc6 {[%clk 00:42:12]} {[%emt 00:01:42]} 18. c5 {[%clk
00:39:31]} {[%emt 00:01:20]} Bh3 {[%clk 00:42:04]} {[%emt 00:00:38]} 19. Qd2
{[%clk 00:37:16]} {[%emt 00:02:46]} Ng6 {[%clk 00:39:54]} {[%emt 00:02:39]} 20.
Qg5 {[%clk 00:34:30]} {[%emt 00:03:16]} Bxg2 {[%clk 00:38:34]} {[%emt
00:01:51]} 21. Kxg2 {[%clk 00:34:57]} {[%emt 00:00:03]} d4 {[%clk 00:38:40]}
{[%emt 00:00:23]} 22. b4 {[%clk 00:33:43]} {[%emt 00:01:44]} Nd5 {[%clk
00:35:36]} {[%emt 00:03:34]} 23. e3 {[%clk 00:21:27]} {[%emt 00:12:46]} Ra6
{[%clk 00:29:44]} {[%emt 00:06:22]} 24. Bb2 {[%clk 00:20:51]} {[%emt 00:01:06]}
Nxb4 {[%clk 00:29:39]} {[%emt 00:00:35]} 25. exd4 {[%clk 00:19:29]} {[%emt
00:01:53]} Nd3 {[%clk 00:25:15]} {[%emt 00:04:53]} 26. dxe5 {[%clk 00:15:01]}
{[%emt 00:04:58]} Rb8 {[%clk 00:24:14]} {[%emt 00:01:31]} 27. Bd4 {[%clk
00:12:25]} {[%emt 00:03:06]} Ra4 {[%clk 00:23:44]} {[%emt 00:01:00]} 28. Rab1
{[%clk 00:09:55]} {[%emt 00:03:00]} Rxb1 {[%clk 00:22:43]} {[%emt 00:01:32]} 29.
Rxb1 {[%clk 00:10:23]} {[%emt 00:00:01]} Rxd4 {[%clk 00:22:56]} {[%emt
00:00:17]} 30. Rb8+ {[%clk 00:10:32]} {[%emt 00:00:22]} Nf8 {[%clk 00:23:20]}
{[%emt 00:00:05]} 31. Nf5 {[%clk 00:03:58]} {[%emt 00:07:05]} Qd5+ {[%clk
00:12:06]} {[%emt 00:11:43]} 32. Kg1 {[%clk 00:03:24]} {[%emt 00:01:03]} Qxe5
{[%clk 00:11:51]} {[%emt 00:00:46]} 33. Ne7+ {[%clk 00:01:47]} {[%emt
00:02:07]} Kh7 {[%clk 00:12:09]} {[%emt 00:00:11]} 34. Qxe5 {[%clk 00:02:10]}
{[%emt 00:00:08]} Nxe5 {[%clk 00:12:34]} {[%emt 00:00:05]} 35. Rxf8 {[%clk
00:02:37]} {[%emt 00:00:04]} Rd7 {[%clk 00:12:36]} {[%emt 00:00:27]} 36. Nf5
{[%clk 00:02:30]} {[%emt 00:00:36]} Rc7 {[%clk 00:12:49]} {[%emt 00:00:18]} 37.
Nd6 {[%clk 00:02:44]} {[%emt 00:00:16]} Rxc5 {[%clk 00:13:09]} {[%emt
00:00:10]} 38. Nxf7 {[%clk 00:01:42]} {[%emt 00:01:32]} Nxf7 {[%clk 00:13:34]}
{[%emt 00:00:06]} 39. Rxf7 {[%clk 00:02:09]} {[%emt 00:00:02]} Ra5 {[%clk
00:13:58]} {[%emt 00:00:06]} 40. Kg2 {[%clk 00:01:31]} {[%emt 00:01:08]} Rxa2
{[%clk 00:14:17]} {[%emt 00:00:11]} 41. Kf3 {[%clk 00:01:56]} {[%emt 00:00:05]}
Ra4 {[%clk 00:14:32]} {[%emt 00:00:15]} 42. Ke3 {[%clk 00:02:17]} {[%emt
00:00:10]} Kg6 {[%clk 00:13:53]} {[%emt 00:01:08]} 43. Rf8 {[%clk 00:02:34]}
{[%emt 00:00:14]} Ra5 {[%clk 00:11:37]} {[%emt 00:02:45]} 44. Ra8 {[%clk
00:02:22]} {[%emt 00:00:42]} Ra2 {[%clk 00:11:33]} {[%emt 00:00:35]} 45. Rf8
{[%clk 00:02:36]} {[%emt 00:00:16]} Ra5 {[%clk 00:11:42]} {[%emt 00:00:21]} 46.
Ke4 {[%clk 00:02:41]} {[%emt 00:00:25]} Ra6 {[%clk 00:11:08]} {[%emt 00:01:03]}
47. Ra8 {[%clk 00:02:45]} {[%emt 00:00:26]} 1/2-1/2

[Event "Weekend I 2025"]
[Site "Uppsala, Sweden"]
[Date "2025.06.27"]
[Round "1.18"]
[White "Rezai, Julius"]
[Black "Westerberg, Claes-Goran"]
[Result "1-0"]
[TimeControl "90 min + increment of 30 sec starting move 1"]
[WhiteFideId "1775138"]
[BlackFideId "1712691"]
[WhiteElo "1906"]
[BlackElo "1888"]

1. c4 {[%clk 01:30:57]} {[%emt 00:00:03]} c5 {[%clk 01:30:53]} {[%emt
00:00:07]} 2. Nf3 {[%clk 01:31:23]} {[%emt 00:00:04]} Nc6 {[%clk 01:31:15]}
{[%emt 00:00:09]} 3. d4 {[%clk 01:31:47]} {[%emt 00:00:06]} cxd4 {[%clk
01:31:36]} {[%emt 00:00:08]} 4. Nxd4 {[%clk 01:32:10]} {[%emt 00:00:07]} e6
{[%clk 01:30:46]} {[%emt 00:01:22]} 5. Nc3 {[%clk 01:28:46]} {[%emt 00:03:53]}
Qc7 {[%clk 01:26:16]} {[%emt 00:05:00]} 6. Ndb5 {[%clk 01:23:01]} {[%emt
00:06:15]} Qb8 {[%clk 01:26:22]} {[%emt 00:00:25]} 7. Ne4 {[%clk 01:18:56]}
{[%emt 00:04:33]} Bb4+ {[%clk 01:11:19]} {[%emt 00:15:36]} 8. Bd2 {[%clk
01:18:23]} {[%emt 00:01:02]} Be7 {[%clk 01:06:18]} {[%emt 00:05:29]} 9. Bc3
{[%clk 01:14:15]} {[%emt 00:04:38]} Nf6 {[%emt 00:03:52]} 10. Nbd6+ {[%clk
01:12:12]} Kf8 {[%clk 01:00:31]} {[%emt 00:05:29]} 11. Qd2 {[%clk 01:00:53]}
{[%emt 00:11:48]} Nxe4 {[%clk 00:48:52]} {[%emt 00:12:10]} 12. Nxe4 {[%clk
01:01:17]} {[%emt 00:00:06]} f5 {[%clk 00:48:58]} {[%emt 00:00:24]} 13. Ng3
{[%clk 00:59:50]} {[%emt 00:01:57]} Qd6 {[%clk 00:35:52]} {[%emt 00:13:35]} 14.
Qc2 {[%clk 00:56:03]} {[%emt 00:04:18]} Bf6 {[%clk 00:28:05]} {[%emt 00:08:16]}
15. Rd1 {[%clk 00:51:11]} {[%emt 00:05:22]} Bxc3+ {[%clk 00:23:08]} {[%emt
00:05:28]} 16. Qxc3 {[%clk 00:50:35]} {[%emt 00:01:06]} Qb4 {[%clk 00:21:27]}
{[%emt 00:02:11]} 17. Qxb4+ {[%clk 00:50:57]} {[%emt 00:00:08]} Nxb4 {[%clk
00:21:56]} {[%emt 00:00:01]} 18. a3 {[%clk 00:51:17]} {[%emt 00:00:10]} Nc6
{[%clk 00:19:03]} {[%emt 00:03:23]} 19. f4 {[%clk 00:51:40]} {[%emt 00:00:07]}
g6 {[%clk 00:08:56]} {[%emt 00:10:37]} 20. e4 {[%clk 00:52:00]} {[%emt
00:00:10]} Ke7 {[%clk 00:09:06]} {[%emt 00:00:19]} 21. h4 {[%clk 00:49:56]}
{[%emt 00:02:35]} Rg8 {[%clk 00:07:29]} {[%emt 00:02:06]} 22. e5 {[%clk
00:49:38]} {[%emt 00:00:49]} b6 {[%clk 00:07:29]} {[%emt 00:00:31]} 23. b4
{[%clk 00:46:25]} {[%emt 00:03:43]} Bb7 {[%clk 00:07:37]} {[%emt 00:00:22]} 24.
Ne2 {[%clk 00:46:23]} {[%emt 00:00:31]} Rad8 {[%clk 00:07:12]} {[%emt
00:00:55]} 25. Rd6 {[%clk 00:46:18]} {[%emt 00:00:35]} Rc8 {[%clk 00:06:16]}
{[%emt 00:01:26]} 26. Rh3 {[%clk 00:43:12]} {[%emt 00:03:35]} Rc7 {[%clk
00:04:10]} {[%emt 00:02:37]} 27. Nc3 {[%clk 00:41:35]} {[%emt 00:02:07]} Bc8
{[%clk 00:03:53]} {[%emt 00:00:47]} 28. Nb5 {[%clk 00:39:40]} {[%emt 00:02:25]}
Rb7 {[%clk 00:04:18]} {[%emt 00:00:05]} 29. Rd2 {[%clk 00:39:25]} {[%emt
00:00:45]} Nd8 {[%clk 00:03:05]} {[%emt 00:01:43]} 30. Rhd3 {[%clk 00:36:58]}
{[%emt 00:02:57]} Nf7 {[%clk 00:03:09]} {[%emt 00:00:26]} 31. g3 {[%clk
00:37:13]} {[%emt 00:00:15]} a6 {[%clk 00:02:16]} {[%emt 00:01:23]} 32. Nd6
{[%clk 00:28:01]} {[%emt 00:09:42]} Nxd6 {[%clk 00:02:16]} {[%emt 00:00:30]} 33.
Rxd6 {[%clk 00:28:26]} {[%emt 00:00:05]} Rd8 {[%clk 00:02:30]} {[%emt
00:00:16]} 34. c5 {[%clk 00:26:21]} {[%emt 00:02:35]} bxc5 {[%clk 00:02:28]}
{[%emt 00:00:32]} 35. Bxa6 {[%clk 00:26:43]} {[%emt 00:00:08]} Ra7 {[%clk
00:02:48]} {[%emt 00:00:11]} 36. Bxc8 {[%clk 00:26:13]} {[%emt 00:01:00]} Rxc8
{[%clk 00:03:07]} {[%emt 00:00:11]} 37. b5 {[%clk 00:26:35]} {[%emt 00:00:07]}
c4 {[%clk 00:02:41]} {[%emt 00:00:56]} 38. b6 {[%clk 00:25:13]} {[%emt
00:01:52]} Rb7 {[%clk 00:02:38]} {[%emt 00:00:33]} 39. a4 {[%clk 00:22:59]}
{[%emt 00:02:45]} c3 {[%clk 00:02:49]} {[%emt 00:00:19]} 40. Rc2 {[%clk
00:22:47]} {[%emt 00:00:41]} Rc6 {[%clk 00:02:30]} {[%emt 00:00:49]} 41. Rxc6
{[%clk 00:23:01]} {[%emt 00:00:17]} dxc6 {[%clk 00:02:59]} {[%emt 00:00:01]} 42.
a5 {[%clk 00:23:05]} {[%emt 00:00:26]} Rb8 {[%clk 00:02:14]} {[%emt 00:01:15]}
43. Rxc3 {[%clk 00:23:23]} {[%emt 00:00:11]} Kd7 {[%clk 00:02:35]} {[%emt
00:00:09]} 44. Rb3 {[%clk 00:23:04]} {[%emt 00:00:49]} c5 {[%clk 00:02:38]}
{[%emt 00:00:28]} 45. a6 {[%clk 00:23:05]} {[%emt 00:00:28]} c4 {[%clk
00:01:51]} {[%emt 00:01:17]} 46. Rb1 {[%clk 00:23:12]} {[%emt 00:00:23]} 1-0

[Event "Weekend I 2025"]
[Site "Uppsala, Sweden"]
[Date "2025.06.27"]
[Round "1.3"]
[White "Malmsten, Hans"]
[Black "Kicin, Almir"]
[Result "0-1"]
[TimeControl "90 min + increment of 30 sec starting move 1"]
[WhiteFideId "1746154"]
[BlackFideId "1719092"]
[WhiteElo "2035"]
[BlackElo "2095"]

1. d4 {[%clk 01:30:56]} {[%emt 00:00:04]} Nf6 {[%clk 01:30:51]} {[%emt
00:00:09]} 2. c4 {[%clk 01:31:13]} {[%emt 00:00:13]} e5 {[%clk 01:30:48]}
{[%emt 00:00:33]} 3. dxe5 {[%clk 01:30:41]} {[%emt 00:01:03]} Ng4 {[%clk
01:31:07]} {[%emt 00:00:11]} 4. e4 {[%clk 01:30:24]} {[%emt 00:00:47]} h5
{[%clk 01:31:26]} {[%emt 00:00:11]} 5. Be2 {[%clk 01:21:21]} {[%emt 00:09:33]}
Nxe5 {[%clk 01:29:14]} {[%emt 00:02:41]} 6. f4 {[%clk 01:18:08]} {[%emt
00:03:44]} Bb4+ {[%clk 01:26:38]} {[%emt 00:03:06]} 7. Bd2 {[%clk 01:11:58]}
{[%emt 00:06:40]} Bxd2+ {[%clk 01:25:41]} {[%emt 00:01:26]} 8. Qxd2 {[%clk
01:10:55]} {[%emt 00:01:34]} Ng4 {[%clk 01:16:12]} {[%emt 00:09:59]} 9. Nf3
{[%clk 00:59:54]} {[%emt 00:11:31]} d6 {[%clk 01:12:06]} {[%emt 00:04:34]} 10.
f5 {[%emt 00:05:24]} Nc6 {[%clk 01:05:03]} {[%emt 00:07:31]} 11. Nc3 {[%clk
00:53:02]} {[%emt 00:02:32]} b6 {[%clk 01:00:55]} {[%emt 00:04:38]} 12. O-O
{[%clk 00:44:12]} {[%emt 00:09:20]} Bb7 {[%clk 00:59:07]} {[%emt 00:02:17]} 13.
Rae1 {[%clk 00:40:01]} {[%emt 00:04:41]} Nge5 {[%clk 00:39:50]} {[%emt
00:19:47]} 14. Nd5 {[%clk 00:32:56]} {[%emt 00:07:35]} a5 {[%clk 00:29:53]}
{[%emt 00:10:27]} 15. b3 {[%clk 00:25:49]} {[%emt 00:07:38]} Qd7 {[%clk
00:17:48]} {[%emt 00:12:35]} 16. Qg5 {[%clk 00:23:55]} {[%emt 00:02:22]} f6
{[%clk 00:16:54]} {[%emt 00:01:25]} 17. Nxe5 {[%clk 00:23:33]} {[%emt
00:00:52]} Nxe5 {[%clk 00:13:10]} {[%emt 00:04:14]} 18. Bxh5+ {[%clk 00:23:23]}
{[%emt 00:00:42]} Kf8 {[%clk 00:09:54]} {[%emt 00:03:44]} 19. Qh4 {[%clk
00:23:09]} {[%emt 00:00:45]} Bxd5 {[%clk 00:09:47]} {[%emt 00:00:38]} 20. exd5
{[%clk 00:22:38]} {[%emt 00:01:00]} Qf7 {[%clk 00:07:47]} {[%emt 00:02:30]} 21.
Bxf7 {[%clk 00:21:03]} {[%emt 00:02:05]} Rxh4 {[%clk 00:08:14]} {[%emt
00:00:03]} 22. Be6 {[%clk 00:21:18]} {[%emt 00:00:15]} a4 {[%clk 00:08:11]}
{[%emt 00:00:33]} 23. Rb1 {[%clk 00:09:13]} {[%emt 00:12:33]} Rd4 {[%clk
00:07:41]} {[%emt 00:01:02]} 24. Rbd1 {[%clk 00:05:17]} {[%emt 00:04:26]} Rxd1
{[%clk 00:04:45]} {[%emt 00:03:25]} 25. Rxd1 {[%clk 00:05:46]} axb3 {[%clk
00:05:02]} {[%emt 00:00:14]} 26. axb3 {[%clk 00:06:08]} {[%emt 00:00:09]} Ra3
{[%clk 00:04:50]} {[%emt 00:00:41]} 27. Rb1 {[%clk 00:03:45]} {[%emt 00:02:53]}
Ra2 {[%clk 00:03:08]} {[%emt 00:02:12]} 28. h3 {[%clk 00:03:20]} {[%emt
00:00:55]} Nd3 {[%clk 00:02:28]} {[%emt 00:01:11]} 29. Rd1 {[%clk 00:01:35]}
{[%emt 00:02:15]} Nf4 {[%clk 00:02:50]} {[%emt 00:00:07]} 30. Rd4 {[%clk
00:01:42]} {[%emt 00:00:24]} Ne2+ {[%clk 00:03:11]} {[%emt 00:00:09]} 0-1